fUSD/lending_fUSD_20240307
["ID","MTS","AMOUNT","RATE_DAILY","PERIOD"]
[317361226,1709775804425,4421.4747318,0.00027,120]
[317361227,1709775804655,1000.0,0.00013372,2]
[317361230,1709775844555,202.0,0.00012991,2]
[317361231,1709775856472,1000.0,0.0001349,2]
[317361232,1709775917469,1000.0,0.00013372,2]
[317361235,1709775948095,-198.66634662,0.00013868,2]
[317361236,1709775948120,-423.43876783,0.00013868,2]
[317361237,1709775948140,-115.58598994,0.00013869,2]
[317361238,1709776033870,1000.0,0.00013372,2]
[317361239,1709776036091,-187.56878748,0.00013866,2]
[317361240,1709776036111,-155.0,0.00013867,2]
[317361241,1709776036130,-58.90864167,0.0001393,2]
[317361252,1709776151360,1000.0,0.00013372,2]
[317361253,1709776159102,-405.4362968,0.00013929,2]
[317361263,1709776204368,202.0,0.00012931,2]
[317361264,1709776212006,154.86,0.000133,2]
[317361276,1709776232446,-155.0,0.00013891,2]
[317361277,1709776232456,-202.0,0.00013892,3]
[317361278,1709776232465,-267.46,0.0001398,2]
[317361279,1709776232477,-57.83158478,0.00013991,2]
[317361280,1709776232490,-365.60718305,0.00013991,2]
[317361281,1709776232500,-150.0,0.00013992,2]
[317361282,1709776232510,-250.0,0.0001401,2]
[317361283,1709776232520,-150.0,0.00014137,2]
[317361284,1709776232530,-163.1967038,0.00014146,2]
[317361285,1709776232540,-262.4,0.00014166,2]
[317361286,1709776232549,-1000.0,0.00014194,2]
[317361287,1709776232559,-1950.32,0.00014218,2]
[317361288,1709776232568,-161.83,0.00014293,2]
[317361289,1709776232580,-163.19670379,0.00014587,2]
[317361290,1709776232589,-314.92,0.00014674,2]
[317361291,1709776232599,-419.3896049,0.000147,2]
[317361292,1709776232608,-737.6,0.00014769,2]
[317361293,1709776232617,-417.67,0.00014769,2]
[317361294,1709776232626,-369.0,0.00014841,2]
[317361295,1709776232635,-202.0,0.00014852,4]
[317361296,1709776233010,-150.0,0.00014997,2]
[317361297,1709776233020,-166.61854895,0.00014998,2]
[317361298,1709776233029,-283.7544185,0.00014998,2]
[317361299,1709776233039,-221.6386662,0.00014998,2]
[317361300,1709776233049,-33816.07391961,0.00015,2]
[317361301,1709776233058,-2350.0,0.00015,3]
[317361302,1709776233067,-170527.84766886,0.00015,2]
[317361303,1709776233088,-3138.08103004,0.00015,2]
[317361304,1709776233101,-471.07573653,0.00015,2]
[317361305,1709776233113,-326.43046132,0.00015,2]
[317361306,1709776233608,-67898.67937429,0.00015,2]
[317361307,1709776233618,-1000.0,0.00015016,2]
[317361308,1709776233628,-163.19670379,0.00015029,2]
[317361309,1709776233637,-161.83,0.00015038,2]
[317361310,1709776233647,-1565.96601134,0.00015084,2]
[317361311,1709776233656,-335.7935,0.0001535,2]
[317361312,1709776233666,-1565.96601133,0.0001535,2]
[317361313,1709776233675,-200.0,0.00015425,2]
[317361314,1709776233685,-200.0,0.00015425,2]
[317361315,1709776233694,-200.0,0.00015425,2]
[317361316,1709776233702,-200.0,0.00015425,2]
[317361317,1709776233711,-200.0,0.00015426,2]
[317361318,1709776233720,-800.0,0.00015426,2]
[317361319,1709776233729,-200.0,0.00015426,2]
[317361320,1709776233739,-200.0,0.00015426,2]
[317361321,1709776233748,-200.0,0.00015426,2]
[317361322,1709776233757,-200.0,0.00015426,2]
[317361323,1709776233766,-200.0,0.00015426,2]
[317361324,1709776233776,-500.0,0.00015426,2]
[317361325,1709776233786,-200.0,0.00015426,2]
[317361326,1709776233798,-372.88442356,0.00015449,2]
[317361327,1709776233808,-1154.4592,0.0001545,2]
[317361328,1709776233817,-500.0,0.0001545,2]
[317361329,1709776233830,-551.02289392,0.0001545,2]
[317361330,1709776233843,-1001.73708854,0.0001545,2]
[317361344,1709776237881,-273.00145946,0.00013891,2]
[317361345,1709776237897,-738.270775,0.00013891,2]
[317361346,1709776237909,-20246.21411754,0.0001545,2]
[317361347,1709776237920,-244826.7775,0.0001545,2]
[317361348,1709776237931,-2714.63207451,0.00015459,2]
[317361349,1709776237941,-179.07546557,0.00015459,2]
[317361350,1709776237952,-154.1023162,0.00015459,2]
[317361351,1709776237964,-161.93330533,0.00015459,2]
[317361352,1709776237975,-163.19670379,0.0001547,2]
[317361353,1709776237985,-400.0,0.000155,2]
[317361354,1709776237994,-19339.58518531,0.000155,2]
[317361355,1709776238005,-5763.09680723,0.00015548,2]
[317361356,1709776238015,-693.808818,0.00015548,2]
[317361357,1709776238024,-455.34257333,0.00015548,2]
[317361358,1709776238034,-1052.33078082,0.00015548,2]
[317361359,1709776238044,-155.07768074,0.00015548,2]
[317361360,1709776238055,-155.48631091,0.00015548,2]
[317361362,1709776238065,-276.62545924,0.00015548,2]
[317361363,1709776238074,-15660.1213415,0.00015548,2]
[317361364,1709776238084,-5952.2236528,0.00015548,2]
[317361365,1709776238093,-5436.2652809,0.00015548,2]
[317361366,1709776238102,-510.49155982,0.00015549,2]
[317361367,1709776238111,-270.25627116,0.00015549,2]
[317361368,1709776238120,-2216.97360785,0.00015549,2]
[317361369,1709776238129,-585003.21084069,0.0001555,2]
[317361372,1709776238146,-531464.28007941,0.0001555,2]
[317361374,1709776238155,-147235.3085942,0.00015559,2]
[317361375,1709776238164,-279.0,0.0001557,2]
[317361376,1709776238173,-356.0,0.0001557,2]
[317361377,1709776238183,-1502.28395422,0.00015661,2]
[317361378,1709776238192,-205.12,0.00015732,2]
[317361379,1709776238201,-202.0,0.00015813,5]
[317361380,1709776238211,-167.0,0.00015831,2]
[317361381,1709776238220,-1000.0,0.00015838,2]
[317361382,1709776238230,-1320.0,0.000159,2]
[317361383,1709776238241,-7072.0,0.000159,2]
[317361384,1709776238250,-279.0,0.0001591,2]
[317361385,1709776238259,-356.0,0.0001591,2]
[317361386,1709776238270,-262.4,0.00015937,2]
[317361387,1709776238281,-500.0,0.00016112,2]
[317361388,1709776238290,-500.0,0.00016112,2]
[317361389,1709776238300,-279.0,0.0001625,2]
[317361390,1709776238309,-356.0,0.0001625,2]
[317361391,1709776238319,-205.12,0.00016288,2]
[317361392,1709776238330,-167.0,0.00016354,2]
[317361393,1709776238339,-1247.55,0.00016438,2]
[317361394,1709776238348,-1500.0,0.00016438,3]
[317361395,1709776238357,-210.0,0.00016497,2]
[317361396,1709776238367,-27601.0,0.00016526,2]
[317361397,1709776238376,-279.0,0.0001658,2]
[317361398,1709776238386,-356.0,0.0001658,2]
[317361399,1709776238395,-737.6,0.00016615,2]
[317361400,1709776238404,-500.0,0.0001666,2]
[317361401,1709776238414,-1000.0,0.0001666,2]
[317361402,1709776238424,-1500.0,0.00016726,2]
[317361403,1709776238434,-1193.40409697,0.00016742,2]
[317361404,1709776238444,-202.0,0.00016773,6]
[317361405,1709776238454,-150.0,0.00016789,2]
[317361406,1709776238463,-1500.0,0.00016802,2]
[317361407,1709776238474,-205.12,0.00016845,2]
[317361408,1709776238484,-150.0,0.00016848,2]
[317361409,1709776238493,-1500.0,0.0001685,2]
[317361410,1709776238503,-1380.923,0.00016869,2]
[317361411,1709776238512,-958.0,0.00016869,2]
[317361412,1709776238521,-2705.57,0.00016869,2]
[317361413,1709776238531,-456.0,0.00016869,2]
[317361414,1709776238541,-1229.0,0.00016869,2]
[317361415,1709776238551,-535.0,0.00016869,2]
[317361416,1709776238562,-602.0,0.00016869,2]
[317361417,1709776238572,-1265.323,0.00016869,2]
[317361418,1709776238585,-278.25,0.00016869,2]
[317361419,1709776238594,-1962.171,0.00016869,2]
[317361420,1709776238603,-431.0,0.00016869,2]
[317361421,1709776238612,-293.694,0.00016869,2]
[317361422,1709776238622,-414.472,0.00016869,2]
[317361423,1709776238632,-820.0,0.00016869,2]
[317361424,1709776238643,-1137.0,0.00016869,2]
[317361425,1709776238653,-2415.0,0.00016869,2]
[317361426,1709776238663,-1458.668,0.00016869,2]
[317361427,1709776238672,-2930.32,0.00016869,2]
[317361428,1709776238682,-393.586,0.00016869,2]
[317361429,1709776238691,-299.0,0.00016869,2]
[317361430,1709776238700,-1555.0,0.00016869,2]
[317361431,1709776238710,-42809.0,0.00016869,2]
[317361432,1709776238720,-1044.483,0.00016869,2]
[317361433,1709776238729,-5172.0,0.00016869,2]
[317361434,1709776238738,-10752.0,0.00016869,2]
[317361435,1709776238750,-5659.0,0.00016869,2]
[317361436,1709776238760,-5753.0,0.00016869,2]
[317361437,1709776238770,-165.796,0.00016869,2]
[317361438,1709776238779,-167.0,0.00016876,2]
[317361439,1709776238790,-150.83532193,0.00016904,2]
[317361440,1709776238799,-279.0,0.0001692,2]
[317361441,1709776238810,-356.0,0.0001692,2]
[317361442,1709776238822,-1500.0,0.00016927,2]
[317361443,1709776238832,-314.92,0.00016938,2]
[317361444,1709776238842,-150.0,0.00016959,2]
[317361445,1709776238852,-3317.0,0.00016986,2]
[317361446,1709776238861,-558.48317492,0.00017,2]
[317361447,1709776238870,-2400.0,0.00017,3]
[317361448,1709776238879,-500.0,0.00017208,2]
[317361449,1709776238889,-500.0,0.00017208,2]
[317361450,1709776238899,-1000.0,0.00017208,2]
[317361451,1709776238909,-279.0,0.0001726,2]
[317361452,1709776238918,-356.0,0.0001726,2]
[317361453,1709776238928,-167.0,0.00017399,2]
[317361454,1709776238937,-205.12,0.00017401,2]
[317361455,1709776238947,-155.0,0.000175,2]
[317361456,1709776238957,-279.0,0.000176,2]
[317361457,1709776238966,-356.0,0.000176,2]
[317361458,1709776238976,-262.4,0.00017708,2]
[317361459,1709776238986,-202.0,0.00017734,7]
[317361460,1709776238996,-500.0,0.00017756,2]
[317361461,1709776239007,-1000.0,0.00017756,2]
[317361462,1709776239017,-250.0,0.00017808,2]
[317361463,1709776239026,-167.0,0.00017921,2]
[317361464,1709776239035,-279.0,0.0001794,2]
[317361465,1709776239046,-356.0,0.0001794,2]
[317361466,1709776239057,-205.12,0.00017957,2]
[317361467,1709776239066,-1763.86584202,0.00017998,2]
[317361468,1709776239076,-167.2769852,0.00017998,2]
[317361469,1709776239086,-245.41385441,0.00017998,2]
[317361470,1709776239096,-3575.56,0.00018,2]
[317361471,1709776239106,-800.0,0.00018,2]
[317361472,1709776239116,-54083.51,0.00018,2]
[317361473,1709776239125,-1098.56,0.00018,2]
[317361474,1709776239135,-440.0,0.00018,2]
[317361475,1709776239145,-1028.49,0.00018,2]
[317361476,1709776239154,-348.0,0.00018,2]
[317361477,1709776239164,-2571.793319,0.00018,2]
[317361478,1709776239174,-1000.0,0.00018,2]
[317361479,1709776239183,-5000.0,0.000181,2]
[317361480,1709776239193,-309.27,0.00018137,2]
[317361481,1709776239203,-293.0,0.00018146,2]
[317361482,1709776239212,-279.0,0.0001828,2]
[317361483,1709776239222,-356.0,0.0001828,2]
[317361484,1709776239231,-500.0,0.00018304,2]
[317361485,1709776239240,-500.0,0.00018304,2]
[317361486,1709776239249,-1000.0,0.00018304,2]
[317361487,1709776239258,-167.0,0.00018444,2]
[317361488,1709776239268,-737.6,0.00018461,2]
[317361489,1709776239277,-2046.09618022,0.000185,2]
[317361490,1709776239286,-1500.0,0.000185,2]
[317361491,1709776239296,-205.12,0.00018514,2]
[317361492,1709776239305,-151.76,0.00018548,2]
[317361493,1709776239314,-159.11,0.00018548,2]
[317361494,1709776239324,-150.0,0.00018548,2]
[317361495,1709776239335,-279.0,0.0001862,2]
[317361496,1709776239345,-356.0,0.0001862,2]
[317361497,1709776239355,-500.0,0.0001863,2]
[317361498,1709776239364,-150.0,0.00018651,2]
[317361499,1709776239373,-150.0,0.00018651,2]
[317361500,1709776239383,-150.0,0.00018651,2]
[317361501,1709776239392,-202.0,0.00018695,9]
[317361502,1709776239402,-150.0,0.0001874,2]
[317361503,1709776239411,-150.0,0.0001874,2]
[317361504,1709776239421,-150.0,0.0001874,2]
[317361505,1709776239431,-7981.70957539,0.000188,2]
[317361506,1709776239440,-600.0,0.000188,2]
[317361507,1709776239450,-500.0,0.00018852,2]
[317361508,1709776239459,-1000.0,0.00018852,2]
[317361509,1709776239468,-279.0,0.0001896,2]
[317361510,1709776239477,-356.0,0.0001896,2]
[317361511,1709776239487,-2000.0,0.00019,2]
[317361512,1709776239497,-40897.36317086,0.00019,3]
[317361513,1709776239507,-600.0,0.00019,20]
[317361514,1709776239516,-3000.0,0.00019,2]
[317361515,1709776239526,-287.25763689,0.00019,2]
[317361516,1709776239535,-1800.0,0.00019,2]
[317361517,1709776239545,-1000.0,0.00019,2]
[317361518,1709776239554,-2003.42,0.00019,2]
[317361519,1709776239563,-2450.0,0.00019,3]
[317361520,1709776239573,-70000.0,0.00019,3]
[317361521,1709776239583,-1500.0,0.00019,2]
[317361522,1709776239594,-205.12,0.0001907,2]
[317361523,1709776239603,-150.0,0.00019071,2]
[317361524,1709776239613,-10219.00243655,0.000191,2]
[317361525,1709776239623,-200.0,0.00019178,2]
[317361526,1709776239632,-250.0,0.00019178,2]
[317361527,1709776239641,-4000.0,0.00019178,2]
[317361528,1709776239650,-164.55,0.0001918,2]
[317361529,1709776239659,-164.55,0.0001918,2]
[317361530,1709776239669,-164.55,0.0001918,2]
[317361531,1709776239678,-1500.0,0.000192,2]
[317361532,1709776239688,-186.0494549,0.000192,2]
[317361533,1709776239697,-314.92,0.00019201,2]
[317361534,1709776239706,-1293.0,0.00019205,2]
[317361535,1709776239716,-151163.04622124,0.0001925,2]
[317361536,1709776239725,-279.0,0.000193,2]
[317361537,1709776239734,-356.0,0.000193,2]
[317361538,1709776239743,-1040.4321119,0.000193,2]
[317361539,1709776239752,-183.40951527,0.000193,3]
[317361540,1709776239762,-500.0,0.000194,2]
[317361541,1709776239771,-210000.0,0.000194,2]
[317361542,1709776239780,-1000.0,0.000194,2]
[317361543,1709776239793,-500.0,0.000194,2]
[317361544,1709776239803,-1000.0,0.000194,2]
[317361545,1709776239814,-519.0,0.00019434,2]
[317361546,1709776239823,-209.0,0.00019434,2]
[317361547,1709776239836,-208.0,0.00019434,2]
[317361548,1709776239845,-750.0,0.00019452,2]
[317361549,1709776239855,-262.4,0.00019479,2]
[317361550,1709776239864,-2250.0,0.000195,2]
[317361551,1709776239874,-1500.0,0.000195,2]
[317361552,1709776239884,-267.46,0.00019573,2]
[317361553,1709776239893,-1040.43211189,0.00019586,2]
[317361554,1709776239903,-279.0,0.0001964,2]
[317361555,1709776239913,-356.0,0.0001964,2]
[317361556,1709776239922,-202.0,0.00019655,10]
[317361557,1709776239932,-152.0,0.00019705,3]
[317361558,1709776239942,-519.0,0.00019708,2]
[317361559,1709776239951,-209.0,0.00019708,2]
[317361560,1709776239960,-208.0,0.00019708,2]
[317361561,1709776239969,-88308.34331424,0.00019772,2]
[317361562,1709776239979,-1000.0,0.000198,3]
[317361563,1709776239988,-1000.0,0.000198,4]
[317361564,1709776239998,-1000.0,0.000198,5]
[317361565,1709776240008,-125183.20040065,0.000198,2]
[317361566,1709776240017,-866.29089876,0.000198,2]
[317361567,1709776240026,-2096.90742129,0.000198,2]
[317361568,1709776240044,-1326.44606691,0.000198,2]
[317361569,1709776240053,-383.8024,0.000198,2]
[317361570,1709776240062,-55555.0,0.000198,2]
[317361571,1709776240071,-119433.46327931,0.0001985,5]
[317361572,1709776240083,-1376.0,0.00019869,2]
[317361573,1709776240093,-958.0,0.00019869,2]
[317361575,1709776240103,-2702.0,0.00019869,2]
[317361576,1709776240112,-456.0,0.00019869,2]
[317361577,1709776240121,-535.0,0.00019869,2]
[317361578,1709776240130,-1229.0,0.00019869,2]
[317361579,1709776240139,-599.443,0.00019869,2]
[317361580,1709776240148,-1260.0,0.00019869,2]
[317361581,1709776240157,-277.0,0.00019869,2]
[317361582,1709776240166,-1958.0,0.00019869,2]
[317361583,1709776240175,-431.0,0.00019869,2]
[317361584,1709776240184,-209.0,0.00019869,2]
[317361585,1709776240193,-413.0,0.00019869,2]
[317361586,1709776240202,-820.0,0.00019869,2]
[317361587,1709776240211,-1137.0,0.00019869,2]
[317361588,1709776240221,-2415.0,0.00019869,2]
[317361589,1709776240230,-1456.0,0.00019869,2]
[317361590,1709776240239,-2927.0,0.00019869,2]
[317361591,1709776240248,-393.0,0.00019869,2]
[317361592,1709776240257,-299.0,0.00019869,2]
[317361593,1709776240266,-1555.0,0.00019869,2]
[317361594,1709776240275,-31733.624,0.00019869,2]
[317361595,1709776240284,-1042.0,0.00019869,2]
[317361596,1709776240293,-5172.0,0.00019869,2]
[317361597,1709776240303,-10752.0,0.00019869,2]
[317361598,1709776240312,-5659.0,0.00019869,2]
[317361599,1709776240321,-5753.0,0.00019869,2]
[317361600,1709776240331,-161.93330532,0.00019872,2]
[317361601,1709776240340,-1040.43211189,0.00019872,2]
[317361602,1709776240349,-171.99140453,0.00019872,2]
[317361603,1709776240359,-183.40951526,0.00019872,3]
[317361604,1709776240369,-1000.0,0.00019872,2]
[317361605,1709776240379,-5000.0,0.00019876,2]
[317361606,1709776240388,-36799.94318763,0.0001989,2]
[317361607,1709776240398,-213122.41627349,0.00019897,2]
[317361608,1709776240416,-932.0,0.00019897,2]
[317361609,1709776240428,-689.14744284,0.00019897,2]
[317361610,1709776240445,-753.50785003,0.00019897,2]
[317361611,1709776240457,-845.42390949,0.00019897,2]
[317361612,1709776240931,-1300.21,0.00015852,2]
[317361613,1709776240942,-1300.21,0.00018592,2]
[317361614,1709776240951,-7399.58,0.00019897,2]
[317361615,1709776240969,-570.20410001,0.00019897,2]
[317361734,1709776245481,-1108.48680392,0.00015549,2]
[317361735,1709776245491,-250.757,0.00016869,2]
[317361736,1709776245501,-150.0,0.00019869,2]
[317361737,1709776245510,-839.0782334,0.00019887,3]
[317361745,1709776245792,-622.9417666,0.00019887,3]
[317361746,1709776245804,-85482.64993836,0.00019897,2]
[317361747,1709776245875,-0.18876712,0.00019897,2]
[317361748,1709776245888,-255.0,0.00019897,2]
[317361749,1709776245920,-27279.65983921,0.00019897,2]
[317361750,1709776245986,-286.35306377,0.00019897,2]
[317361799,1709776264224,200.0,0.00012931,2]
[317361814,1709776809701,2000.0,0.00027,120]
[317361815,1709776897781,2037.0,0.00027,120]
[317361817,1709777003969,62314.99482742,0.0001702,7]
[317361818,1709777043866,-155.0,0.00014375,2]
[317361819,1709777043890,-1011.27223446,0.00014376,2]
[317361820,1709777043913,-251.93,0.00014381,2]
[317361821,1709777043936,-1000.0,0.00014742,2]
[317361822,1709777043972,-150.0,0.00015463,2]
[317361823,1709777044000,-300.0,0.00015463,2]
[317361824,1709777044027,-150.0,0.00015463,2]
[317361825,1709777044051,-150.0,0.00015463,2]
[317361826,1709777044077,-29860.95281873,0.00015464,2]
[317361827,1709777044101,-255.4362968,0.00015464,2]
[317361828,1709777044125,-183.40951526,0.00015464,2]
[317361829,1709777044152,-1040.43211189,0.00015464,2]
[317361830,1709777044175,-515.97421361,0.00015464,2]
[317361831,1709777044199,-19339.58518531,0.000155,2]
[317361832,1709777044228,-400.0,0.000155,2]
[317361833,1709777044251,-1049.23695004,0.00015547,2]
[317361834,1709777044273,-155.0,0.00015548,2]
[317361835,1709777044297,-1000.0,0.00015549,2]
[317361836,1709777044324,-1149081.7706739,0.0001555,2]
[317361858,1709777431955,-155.0,0.000144,2]
[317361860,1709777431965,-1011.27223446,0.00014402,2]
[317361862,1709777431974,-239.33,0.00014403,2]
[317361864,1709777431984,-1000.0,0.00014742,2]
[317361866,1709777431993,-2350.0,0.00015,3]
[317361867,1709777432002,-161.93330532,0.0001545,2]
[317361868,1709777432011,-19339.58518531,0.000155,2]
[317361869,1709777432020,-150.0,0.00015546,2]
[317361870,1709777432031,-199.34011542,0.00015548,2]
[317361871,1709777432040,-2511.0,0.00015548,2]
[317361872,1709777432049,-303.94118916,0.00015549,2]
[317361873,1709777432058,-1658.39,0.00015549,2]
[317361874,1709777432068,-70632.38368405,0.0001555,2]
[317361875,1709777432080,-682.16841522,0.0001555,2]
[317361876,1709777432105,-102131.98538056,0.0001555,2]
[317361877,1709777432116,-1514.47463291,0.0001555,2]
[317361878,1709777432152,-1380.44026994,0.0001555,2]
[317361879,1709777432165,-434.38203018,0.0001555,2]
[317361880,1709777434065,-3148.70791168,0.0001555,2]
[317361881,1709777434076,-372.88887261,0.0001555,2]
[317361882,1709777434088,-746.41878368,0.0001555,2]
[317361883,1709777434127,-26537.3052,0.0001555,2]
[317361884,1709777434191,-1017.36783253,0.0001555,2]
[317361886,1709777434203,-2021.54248325,0.0001555,2]
[317361888,1709777434215,-259.94301548,0.0001555,2]
[317362028,1709777437927,-267.11073634,0.0001545,2]
[317362029,1709777437939,-1947.83878985,0.0001555,2]
[317362030,1709777437951,-1647.00585288,0.0001555,2]
[317362031,1709777438045,-58044.50764675,0.0001555,2]
[317362032,1709777438106,-333741.19279812,0.0001555,2]
[317362033,1709777438118,-642.67,0.0001555,2]
[317362034,1709777438172,-3339.94783452,0.0001555,2]
[317362035,1709777438185,-2122.94425891,0.0001555,2]
[317362036,1709777438230,-22520.64177143,0.0001555,2]
[317362037,1709777438292,-205873.23988376,0.0001555,2]
[317362045,1709777440971,-270.74000002,0.0001555,2]
[317362046,1709777440997,-724.98842962,0.0001555,2]
[317362047,1709777441015,-369.8,0.0001555,2]
[317362048,1709777441026,-1358.27907488,0.0001555,2]
[317362049,1709777441041,-893.46396098,0.0001555,2]
[317362050,1709777441062,-465.82012791,0.0001555,2]
[317362051,1709777441076,-269.48510162,0.0001555,2]
[317362052,1709777441152,-6075780.22555776,0.0001555,2]
[317362053,1709777441168,-2002.32735389,0.0001555,2]
[317362054,1709777441181,-6903.44122046,0.0001555,2]
[317362055,1709777441203,-6603.4156599,0.0001555,2]
[317362056,1709777441215,-701.28154741,0.0001555,2]
[317362057,1709777441259,-662.88746465,0.0001555,2]
[317362070,1709777442972,-7839.66001265,0.0001555,2]
[317362080,1709777443093,-3687.37749744,0.0001555,2]
[317362082,1709777443105,-977.01769193,0.0001555,2]
[317362084,1709777443117,-3590.48196523,0.0001555,2]
[317362086,1709777443129,-5274.99976172,0.0001555,2]
[317362088,1709777443143,-9186.9619465,0.0001555,2]
[317362090,1709777443155,-4422.81140246,0.0001555,2]
[317362092,1709777443169,-3564.71283982,0.0001555,2]
[317362097,1709777443271,-16751.85427636,0.0001555,2]
[317362112,1709777446023,-2658.33156381,0.00015549,2]
[317362113,1709777446034,-640.77986146,0.00015549,2]
[317362114,1709777446085,-729.84447546,0.00015549,2]
[317362115,1709777446097,-8677.41586848,0.00015549,2]
[317362116,1709777446149,-603.18040177,0.00015549,2]
[317362117,1709777446163,-6030.03301433,0.00015549,2]
[317362118,1709777446173,-605.68901595,0.00015549,2]
[317362119,1709777446185,-85.70390345,0.00015549,2]
[317362120,1709777446195,-441.34397606,0.00015549,2]
[317362121,1709777446204,-155.0,0.00015549,2]
[317362122,1709777446215,-19541.2232915,0.0001555,2]
[317362123,1709777446227,-1985.71774702,0.0001555,2]
[317362124,1709777446241,-1006.8,0.0001555,2]
[317362125,1709777446260,-1305.66878486,0.0001555,2]
[317362126,1709777446272,-27925.24436702,0.0001555,2]
[317362127,1709777446283,-578.27941501,0.0001555,2]
[317362128,1709777446393,-569127.29539784,0.0001555,2]
[317362129,1709777446405,-7621.09842725,0.0001555,2]
[317362133,1709777446689,-390.9763382,0.0001555,2]
[317362140,1709777714790,500.0,0.0002657,120]
[317362141,1709777855143,2394.21479628,0.0001702,7]
[317362142,1709777887021,2391.0,0.0001702,8]
[317362143,1709777906126,1000.0,0.0001325,2]
[317362144,1709778006506,1000.0,0.0001325,2]
[317362145,1709778102745,1000.0,0.0001325,2]
[317362146,1709778201908,1000.0,0.0001325,2]
[317362147,1709778224827,541.41701014,0.0001325,2]
[317362148,1709778292743,1000.0,0.0001325,2]
[317362149,1709778397578,1000.0,0.0001325,2]
[317362150,1709778398197,246.23,0.00011801,2]
[317362151,1709778433118,-160.02354749,0.00013497,2]
[317362152,1709778489924,1000.0,0.0001325,2]
[317362153,1709778551097,-2896.85121965,0.00013497,2]
[317362154,1709778551118,-150.0,0.00013497,2]
[317362155,1709778551137,-1430.63467484,0.00013498,2]
[317362156,1709778551155,-1430.63467484,0.00013498,2]
[317362157,1709778551174,-1430.63467484,0.00013498,2]
[317362158,1709778551195,-1430.63467484,0.00013498,2]
[317362159,1709778551214,-1430.63467484,0.00013498,2]
[317362160,1709778551233,-14950.02807984,0.000135,2]
[317362161,1709778551253,-433.4,0.00013639,2]
[317362162,1709778551274,-2127.71,0.00013699,2]
[317362163,1709778551293,-729.74339807,0.00013981,2]
[317362164,1709778551312,-252.51727724,0.00013981,2]
[317362165,1709778551332,-150.0,0.00013981,2]
[317362166,1709778551350,-150.0,0.00013981,2]
[317362167,1709778551369,-288.29800817,0.00013981,2]
[317362168,1709778551389,-150.0,0.00013981,2]
[317362169,1709778551408,-150.0,0.00013981,2]
[317362170,1709778551428,-150.0,0.00013981,2]
[317362171,1709778551450,-150.0,0.00013981,2]
[317362172,1709778551468,-150.0,0.00013981,2]
[317362173,1709778551487,-134.27034658,0.00013981,2]
[317362174,1709778580898,1000.0,0.0001325,2]
[317362178,1709778606771,500.0,0.0002657,120]
[317362187,1709778632087,-15.72965342,0.00013981,2]
[317362188,1709778632096,-290.433143,0.00013981,2]
[317362189,1709778632106,-729.74339807,0.00013997,2]
[317362190,1709778632115,-252.51727724,0.00013997,2]
[317362191,1709778632124,-288.29800817,0.00013997,2]
[317362192,1709778632134,-150.0,0.00014008,2]
[317362193,1709778632143,-729.74339807,0.00014012,2]
[317362194,1709778632152,-252.51727724,0.00014012,2]
[317362195,1709778632162,-288.29800817,0.00014012,2]
[317362196,1709778632171,-150.0,0.00014024,2]
[317362197,1709778632180,-150.0,0.00014027,2]
[317362198,1709778632189,-729.74339807,0.00014028,2]
[317362199,1709778632199,-252.51727724,0.00014028,2]
[317362200,1709778632208,-288.29800817,0.00014028,2]
[317362201,1709778632217,-150.0,0.00014035,2]
[317362202,1709778632227,-150.0,0.00014041,2]
[317362203,1709778632236,-554.09895683,0.00014044,2]